Cogmind - Beta 10 @@@ ROGUE MODE // 2020.09.11 @ 21:21:28 Player: JackNine Result: Destroyed by as-10430 with Assembled Focal Cannon Performance ------------- Evolutions (3) 1500 Regions Visited (12) 2400 Robots Destroyed (109) 545 Value Destroyed (3307) 3307 Prototype IDs (13) 260 Alien Tech Used (1) 200 Bonus (-156) -156 TOTAL SCORE: 8056 Bonus ------- High Alert Combat Kills 44 Destroyed Z-Imprinter 1000 Friendly Fire -1200 Cogmind --------- Core Integrity 0/700 Matter 86/300 Energy 170/170 System Corruption 0% Temperature Cool (6) Movement Treading (200) Ox2 Location -7/Deep Caves Parts ------- > --- POWER (1) -------- Light Antimatter Reactor > --- PROPULSION (2) --- Light Treads Light Treads > --- UTILITY (8) ------ Experimental Heat Sink Experimental Heat Sink High-capacity Storage Unit High-capacity Storage Unit High-capacity Storage Unit Experimental Sensor Array Advanced Signal Interpreter Improved Targeting Computer > --- WEAPON (3) ------- Heavy EM Shotgun Precision Shock Rifle > --- INVENTORY (28) --- Advanced Treads High-capacity Storage Unit YI-UF0's Bottomless Matter Pit (1500) Surveybot 24 Chip Damper Plating Damper Plating Heavy Beamcaster Heavy Beamcaster Heavy Beamcaster Makeshift Hammer Dirty Bomb Trap Self-destruct Interrupter (50) Peak State ------------ > --- POWER ------------ Light Angular Momentum Engine > --- PROPULSION ------- Armored Treads Armored Treads > --- UTILITY ---------- Improved Heat Sink High-capacity Storage Unit High-capacity Storage Unit High-capacity Storage Unit Experimental Sensor Array Advanced Signal Interpreter Improved Targeting Computer Improved Light Armor Plating > --- WEAPON ----------- Heavy EM Shotgun Guided Missile Launcher > --- INVENTORY -------- Light Antimatter Reactor Light Treads Light Treads Advanced Treads High-capacity Storage Unit YI-UF0's Bottomless Matter Pit Hardened Light Armor Plating Improved Medium Armor Plating Damper Plating Damper Plating Heavy EM Shotgun Heavy EM Shotgun Precision Shock Rifle Heavy Laser Heavy Beamcaster Heavy Beamcaster Heavy Beamcaster Gauss Rifle Flak Gun Shock Bomb Launcher Flail Great Maul Dirty Bomb Trap Dirty Bomb Trap [Rating: 57] Favorites ----------- Power Cooled Ion Engine Engine Cooled Ion Engine Reactor Light Antimatter Reactor Propulsion Light Treads Treads Light Treads Wheel Wheel Hover Unit Gyrokinetic Inverter Utility High-capacity Storage Unit Device Experimental Sensor Array Storage High-capacity Storage Unit Processor Advanced Signal Interpreter Protection Improved Light Armor Plating Weapon Heavy EM Shotgun Energy Gun Heavy EM Shotgun Ballistic Gun Autogun Ballistic Cannon Improved Light Cannon Launcher Rocket Array Impact Weapon Flail Slashing Weapon Chainsword Build | -11 -10 -10 -10 -9 -8 -7 -7 -7 -7 -7 -7 -7 ------- Run | Scr Mat Min Exi Min Mat Fac Was Fac Low Low Zio Dee Slots Evolved 6 | . . . . . 4 2 . . . . . . Power . | . . . . . . . . . . . . . Propulsion . | . . . . . . . . . . . . . Utility 5 | . . . . . 3 2 . . . . . . Weapon 1 | . . . . . 1 . . . . . . . Parts Attached 141 | 6 9 . 2 9 30 10 9 11 22 11 2 20 Power 13 | 1 2 . . 2 3 . . 2 1 1 . 1 Engine 12 | 1 2 . . 2 3 . . 2 1 1 . . Core . | . . . . . . . . . . . . . Reactor 1 | . . . . . . . . . . . . 1 Propulsion 23 | 2 3 . . . 8 . 6 . 2 . . 2 Treads 20 | 2 3 . . . 8 . 3 . 2 . . 2 Leg . | . . . . . . . . . . . . . Wheel 2 | . . . . . . . 2 . . . . . Hover 1 | . . . . . . . 1 . . . . . Flight . | . . . . . . . . . . . . . Utility 35 | 1 2 . 2 . 7 5 . . 8 4 . 6 Device 13 | . . . . . 3 2 . . 3 2 . 3 Storage 7 | 1 2 . 2 . 2 . . . . . . . Processor 3 | . . . . . . 2 . . 1 . . . Hackware . | . . . . . . . . . . . . . Protection 12 | . . . . . 2 1 . . 4 2 . 3 Artifact . | . . . . . . . . . . . . . Weapon 70 | 2 2 . . 7 12 5 3 9 11 6 2 11 Energy Gun 29 | . 1 . . 3 6 4 2 4 1 4 . 4 Energy Cannon . | . . . . . . . . . . . . . Ballistic Gun 12 | 2 . . . 2 2 . 1 1 2 . . 2 Ballistic Cannon 5 | . 1 . . . 2 . . . 2 . . . Launcher 16 | . . . . 2 1 . . 1 4 2 2 4 Special Weapon . | . . . . . . . . . . . . . Impact Weapon 7 | . . . . . 1 1 . 2 2 . . 1 Slashing Weapon 1 | . . . . . . . . 1 . . . . Piercing Weapon . | . . . . . . . . . . . . . Special Melee Weapon . | . . . . . . . . . . . . . Unidentified Prototypes 11 | . . . . . 6 1 . . 1 . 2 1 Parts Lost 36 | . 2 . . 1 10 . . 1 9 . . 13 Power 3 | . . . . . 1 . . . 1 . . 1 Propulsion 7 | . 1 . . . 2 . . . 2 . . 2 Utility 7 | . . . . . 1 . . . 2 . . 4 Weapon 19 | . 1 . . 1 6 . . 1 4 . . 6 Highest Loss Streak 12 | . 2 . . 1 3 . . 1 4 . . 12 Average Slot Usage (%) 94 | . 96 100 100 100 96 100 99 100 88 99 86 82 Engine 8 | . 14 14 14 14 8 7 7 7 6 7 7 1 Treads 17 | . 25 28 28 28 17 15 13 15 14 14 14 13 Device 8 | . . . . . 7 13 15 15 6 12 14 12 Storage 23 | . 27 28 28 28 26 23 23 23 21 21 21 21 Processor 9 | . . . . . . 8 15 15 17 14 14 14 Protection 3 | . . . . . 8 7 . . 1 6 7 2 Energy Gun 11 | . 6 14 14 13 12 21 22 19 5 13 7 7 Ballistic Gun 4 | . 10 . . 10 7 . . . 7 7 . . Ballistic Cannon 3 | . 10 14 14 3 5 . . . 2 . . . Impact Weapon 1 | . . . . . . 1 . 1 5 . . . Naked Turns . | . . . . . . . . . . . . . Heaviest Build 130 | 11 42 42 74 79 121 121 115 122 130 125 124 128 Greatest Support 43 | 40 40 40 40 40 43 43 43 43 43 40 40 40 Greatest Overweight (x) 5 | . 2 1 1 1 3 2 5 2 3 3 3 3 Average Overweight (x) 1 | . . 1 1 1 2 2 2 2 2 2 2 2 Largest Inventory Capacity 28 | 6 16 16 20 20 28 28 28 28 28 28 28 28 Average Capacity 25 | 5 15 16 17 20 27 28 28 28 28 28 28 28 Most Carried 28 | 3 16 16 17 20 28 28 28 28 27 28 28 28 Average Carried 22 | 2 11 15 16 18 22 27 27 27 22 27 27 19 Final Capacity 28 | 6 16 16 20 20 28 28 28 28 28 28 28 28 Final Carried 28 | 3 16 16 17 20 28 28 28 27 25 28 28 16 Class Distribution -------------------- 52% | Hauler-Mutant 20% | Hauler-Skirmisher 16% | Mutant 9% | Hauler-Tank Dominant Class ---------------- Mutant | -10/Materials Mutant | -10/Mines Mutant | -10/Exiles Hauler-Mutant | -9/Mines Hauler-Tank | -8/Materials Hauler-Skirmisher | -7/Factory Hauler-Skirmisher | -7/Waste Hauler-Mutant | -7/Factory Hauler-Mutant | -7/Lower Caves Hauler-Skirmisher | -7/Lower Caves Hauler-Mutant | -7/Zion Hauler-Mutant | -7/Deep Caves Resources | -11 -10 -10 -10 -9 -8 -7 -7 -7 -7 -7 -7 -7 ----------- Run | Scr Mat Min Exi Min Mat Fac Was Fac Low Low Zio Dee Matter Collected 4260 | 268 219 4 . 127 1578 175 843 120 425 389 15 97 Remotely . | . . . . . . . . . . . . . Salvage Created 4226 | 89 396 80 . 268 1533 205 365 179 376 549 . 186 Parts 181 | 1 25 4 . 19 69 9 10 7 14 19 . 4 Haulers Intercepted 4 | . 1 . . . 2 . . 1 . . . . Recyclers Shooed 2 | . . . . 1 1 . . . . . . . Parts Field Recycled . | . . . . . . . . . . . . . Retrieved Matter . | . . . . . . . . . . . . . Parts Self-Destructed 11 | . . . . . . . . . 10 1 . . Prevented 10 | . . . . . . . . . 1 9 . . Kills | -11 -10 -10 -10 -9 -8 -7 -7 -7 -7 -7 -7 -7 ------- Run | Scr Mat Min Exi Min Mat Fac Was Fac Low Low Zio Dee Combat Hostiles Destroyed 88 | . 12 2 . 9 27 2 . 2 14 8 . 12 Guns 46 | . 10 . . 1 24 1 . 2 4 4 . . Cannons 9 | . 2 . . 2 2 . . . 3 . . . AOE 31 | . . 2 . 6 1 . . . 7 3 . 12 Classes Destroyed 16 | 1 3 1 . 1 5 1 . . 2 . . 2 Worker 5 | . . 2 . . 1 2 . . . . . . Builder 2 | . . . . . 1 1 . . . . . . Hauler 4 | . 1 . . . 2 . . 1 . . . . Recycler 4 | 1 . . . . 3 . . . . . . . Minesweeper 2 | . . . . . . . . . 1 1 . . Operator 1 | . . . . . 1 . . . . . . . Watcher 2 | . . . . . 2 . . . . . . . Swarmer 20 | . 3 . . 6 3 . . . 8 . . . Grunt 34 | . 9 2 . 2 16 . . . 2 3 . . Brawler 3 | . . . . 1 1 . . . 1 . . . Duelist 2 | . . . . . . . . . 2 . . . Sentry 9 | . . . . . 5 1 . 1 1 1 . . Hunter 2 | . . . . . 2 . . . . . . . Programmer 2 | . . . . . . 1 . 1 . . . . Z-Light 2 | . . . . . . . . . . . . 2 Assembled 9 | . . . . . . . . . . . . 9 Thug 4 | . . . . . . . . . . 4 . . Best Kill Streak 7 | 1 7 4 . 3 5 1 . 1 5 4 . 3 Combat Bots Only 7 | . 7 2 . 3 4 1 . 1 5 4 . 3 Max Kills in Single Turn 4 | 1 1 4 . 3 2 1 . 1 2 1 . 3 Gunslinging . | . . . . . . . . . . . . . Exploded 3 | . . 2 . 3 1 . . . 2 1 . 3 Melee . | . . . . . . . . . . . . . Uniques/NPCs Destroyed 2 | . . . . 1 . . . . . . . 1 YI-UF0 (-9/Mines) Z-Imprinter (-7/Deep Caves) Combat | -11 -10 -10 -10 -9 -8 -7 -7 -7 -7 -7 -7 -7 -------- Run | Scr Mat Min Exi Min Mat Fac Was Fac Low Low Zio Dee Damage Taken 7570 | . 674 . . 171 2062 208 . 376 1648 569 . 1862 Core 1044 | . 92 . . 44 177 25 . 11 216 97 . 382 Absorbed by Shields . | . . . . . . . . . . . . . Core Remaining (%) 70 | 100 . . . 45 67 . . . . . . . Volleys Fired 262 | 4 49 1 . 21 96 13 11 11 22 22 . 12 Largest 3 | 2 2 1 . 2 3 3 3 3 3 3 . 3 Hottest 201 | 40 79 39 . 79 176 187 181 190 201 128 . 106 Shots Fired 627 | 8 97 1 . 40 261 37 33 30 45 56 . 19 Gun 478 | 8 79 . . 30 185 37 33 29 17 48 . 12 Cannon 118 | . 18 1 . 7 72 . . . 20 . . . Launcher 31 | . . . . 3 4 . . 1 8 8 . 7 Special . | . . . . . . . . . . . . . Kinetic 332 | 8 87 1 . 19 163 . . 4 24 21 . 5 Thermal 182 | . 10 . . 18 71 33 22 15 13 . . . Explosive 22 | . . . . 3 4 . . 1 7 . . 7 Electromagnetic 91 | . . . . . 23 4 11 10 1 35 . 7 Robot Hit Streak 24 | 2 13 . . 11 17 8 24 18 21 12 . 5 Robot Miss Streak 6 | 4 2 . . 1 6 2 1 1 2 1 . 3 Penetration Max . | . . . . . . . . . . . . . Secondary Targets 3 | . 3 . . . . . . . . . . . Max Gunslinging Chain 1 | . 1 . . . . . . . . . . . Shots Hit Robots 426 | 4 74 . . 32 147 26 29 24 35 40 . 15 Core Hits 227 | 3 30 5 . 16 74 7 5 7 26 25 . 29 Critical Hits 4 | . . . . . 2 . . . 1 1 . . Critical Kills 1 | . . . . . . . . . 1 . . . Critical Parts Destroyed 3 | . . . . . 2 . . . . 1 . . Melee Attacks 31 | . . . . . 1 2 . 6 13 . . 9 Impact 30 | . . . . . 1 2 . 5 13 . . 9 Slashing 1 | . . . . . . . . 1 . . . . Piercing . | . . . . . . . . . . . . . Sneak Attacks 2 | . . . . . . . . . 2 . . . Combat Hostiles . | . . . . . . . . . . . . . Follow-up Attacks . | . . . . . . . . . . . . . Damage Inflicted 9667 | 29 809 325 . 674 2748 479 428 477 1644 1042 . 1012 Guns 4829 | 29 533 . . 259 1666 479 428 477 302 573 . 83 Cannons 1239 | . 270 . . 116 619 . . . 234 . . . Explosions 3413 | . . 285 . 299 463 . . . 968 469 . 929 Melee 140 | . . . . . . . . . 140 . . . Ramming 46 | . 6 40 . . . . . . . . . . Kinetic 2694 | 29 712 . . 221 1172 . . 77 260 176 . 47 Thermal 2967 | . 91 285 . 154 937 436 325 253 276 46 . 164 Explosive 2297 | . . . . 299 294 . . . 939 . . 765 Electromagnetic 1523 | . . . . . 345 43 103 147 29 820 . 36 Impact 140 | . . . . . . . . . 140 . . . Slashing . | . . . . . . . . . . . . . Piercing . | . . . . . . . . . . . . . Highest Corruption 3 | . . . . . . 3 3 3 3 3 3 . Average Corruption 2 | . . . . . . 2 3 3 3 3 3 . Corruption Purged . | . . . . . . . . . . . . . Effects 91 | . . . . . . 12 8 11 41 12 7 . Message Errors 22 | . . . . . . 5 4 4 7 . 2 . Matter Fused 30 | . . . . . . 3 2 5 17 2 1 . Heat Flow Errors 16 | . . . . . . 1 . 2 9 4 . . Energy Discharges 8 | . . . . . . . 1 . 2 3 2 . Data Loss (minor) 9 | . . . . . . 1 . . 4 2 2 . Targeting Errors 5 | . . . . . . 2 1 . 2 . . . Weapon Failures 1 | . . . . . . . . . . 1 . . Overload Shots . | . . . . . . . . . . . . . Overflow Damage 194 | . . . . 4 19 . . . 97 19 . 55 Projectiles 4 | . . . . . 4 . . . . . . . Explosions 129 | . . . . 4 15 . . . 36 19 . 55 Melee 61 | . . . . . . . . . 61 . . . Knockbacks 15 | . 3 . . 1 7 . . . 4 . . . Impact 2 | . . . . . . . . . 2 . . . Kinetic 11 | . 3 . . 1 5 . . . 2 . . . Secondary 2 | . . . . . 2 . . . . . . . Self-Inflicted Damage 308 | . . . . . 56 . . . 65 18 . 169 Shots 14 | . . . . . 2 . . . 2 2 . 8 Rammed 7 | . 2 5 . . . . . . . . . . Targets Rammed 7 | . 2 5 . . . . . . . . . . Kicked . | . . . . . . . . . . . . . Crushed . | . . . . . . . . . . . . . Highest Temperature 411 | . 102 . . 152 327 276 187 204 411 214 . 65 Average Temperature 85 | . 27 . . 61 72 116 85 77 146 66 . 28 Received Heat Transfer 2105 | . 258 . . 66 738 36 . 90 240 246 . 431 Effects 5 | . . . . . 2 1 . . 2 . . . Shutdowns 1 | . . . . . . . . . 1 . . . Energy Bleed 1 | . . . . . . 1 . . . . . . Interference 2 | . . . . . 2 . . . . . . . Matter Decay 1 | . . . . . . . . . 1 . . . Siege Activations . | . . . . . . . . . . . . . Robots Corrupted 1 | . . . . . . . . . . 1 . . Combat Hostiles 1 | . . . . . . . . . . 1 . . Parts Fried 14 | . . . . . 1 . . 2 . 11 . . Impact Corruptions 3 | . . . . . . . . . 3 . . . Robots Melted 1 | . . . . . . 1 . . . . . . Combat Hostiles 1 | . . . . . . 1 . . . . . . Parts Melted 6 | . . . . . 2 4 . . . . . . Heat Transferred 4973 | . 200 350 . 350 1593 814 703 407 444 50 . 62 Parts Sabotaged . | . . . . . . . . . . . . . Parts Stolen . | . . . . . . . . . . . . . Parts Stripped . | . . . . . . . . . . . . . Power Chain Reactions 7 | . . . . . 3 . . 1 . 1 . 2 Missiles Intercepted . | . . . . . . . . . . . . . Alert | -11 -10 -10 -10 -9 -8 -7 -7 -7 -7 -7 -7 -7 ------- Run | Scr Mat Min Exi Min Mat Fac Was Fac Low Low Zio Dee Peak Influence 488 | 5 255 174 . 200 488 279 97 53 . . . . Initial 221 | . 3 39 . . . 221 97 . . . . . Average 116 | 2 122 73 . 54 228 172 60 23 . . . . Maximum Alert Level 2 | . 1 . . 1 2 1 . . . . . . Low Security (%) 76 | 100 77 100 . 89 49 43 100 100 . . . . Level 1 17 | . 22 . . 10 29 56 . . . . . . Level 2 5 | . . . . . 21 . . . . . . . Level 3 . | . . . . . . . . . . . . . Level 4 . | . . . . . . . . . . . . . Level 5 . | . . . . . . . . . . . . . High Security . | . . . . . . . . . . . . . Max Security . | . . . . . . . . . . . . . Squads Dispatched 12 | . 4 . . . 5 2 . 1 . . . . Investigation 5 | . 2 . . . 3 . . . . . . . Extermination 2 | . . . . . . 1 . 1 . . . . Reinforcement 3 | . 2 . . . 1 . . . . . . . Assault 1 | . . . . . . 1 . . . . . . Garrison 1 | . . . . . 1 . . . . . . . Intercept . | . . . . . . . . . . . . . Construction Impeded 1 | . . . . . 1 . . . . . . . Haulers Reinforced . | . . . . . . . . . . . . . Stealth | -11 -10 -10 -10 -9 -8 -7 -7 -7 -7 -7 -7 -7 --------- Run | Scr Mat Min Exi Min Mat Fac Was Fac Low Low Zio Dee Distress Signals 8 | . 2 . . . 6 . . . . . . . Communications Jammed . | . . . . . . . . . . . . . Distress Signals . | . . . . . . . . . . . . . Times Spotted 125 | . 26 1 . 9 45 3 . 2 17 9 . 13 Peak Tracking Total 6 | . 6 2 . 3 6 1 . 1 5 4 . 3 Tactical Retreats 11 | . 2 . . . 5 . . . 3 1 . . Traps | -11 -10 -10 -10 -9 -8 -7 -7 -7 -7 -7 -7 -7 ------- Run | Scr Mat Min Exi Min Mat Fac Was Fac Low Low Zio Dee Traps Triggered 2 | . . . . . . 2 . . . . . . Indirectly . | . . . . . . . . . . . . . Trap Hack Attempts . | . . . . . . . . . . . . . Triggered . | . . . . . . . . . . . . . Disarmed . | . . . . . . . . . . . . . Reprogrammed . | . . . . . . . . . . . . . Reused 1 | . . . . . . . . . . . . 1 Traps Extracted . | . . . . . . . . . . . . . Installed 1 | . . . . . . . . . . . . 1 Triggered 3 | . . . . . 2 . . . . 1 . . Machines | -11 -10 -10 -10 -9 -8 -7 -7 -7 -7 -7 -7 -7 ---------- Run | Scr Mat Min Exi Min Mat Fac Was Fac Low Low Zio Dee Machines Disabled 10 | . 1 5 . . 2 1 . . . . . 1 Max in Single Turn 5 | . 1 5 . . 1 1 . . . . . 1 Garrison Access 2 | . . . . . . 2 . . . . . . Machines Sabotaged . | . . . . . . . . . . . . . Garrisons Compromised . | . . . . . . . . . . . . . Overloaded Fab Kills . | . . . . . . . . . . . . . Fab Network Shutdowns . | . . . . . . . . . . . . . Hacking | -11 -10 -10 -10 -9 -8 -7 -7 -7 -7 -7 -7 -7 --------- Run | Scr Mat Min Exi Min Mat Fac Was Fac Low Low Zio Dee Machines Accessed 20 | . 5 1 1 . 8 2 . 3 . . . . Terminals 11 | . 3 . . . 6 1 . 1 . . . . Fabricators 1 | . . . . . . . . 1 . . . . Repair Stations 4 | . 1 . . . 2 . . 1 . . . . Recycling Units 1 | . 1 . . . . . . . . . . . Scanalyzers . | . . . . . . . . . . . . . Garrison Access 1 | . . . . . . 1 . . . . . . Total Hacks 65 | . 17 1 1 . 33 3 . 10 . . . . Successful 36 | . 14 1 1 . 15 1 . 4 . . . . Failed 28 | . 3 . . . 17 2 . 6 . . . . Catastrophic 2 | . . . . . . 1 . 1 . . . . Database Lockouts 1 | . . . . . 1 . . . . . . . Manual 42 | . 11 . . . 21 2 . 3 . . 5 . Terminals 45 | . 12 . . . 25 2 . 6 . . . . Fabricators 1 | . . . . . . . . 1 . . . . Repair Stations 15 | . 4 . . . 8 . . 3 . . . . Recycling Units 1 | . 1 . . . . . . . . . . . Scanalyzers . | . . . . . . . . . . . . . Garrison Access 1 | . . . . . . 1 . . . . . . Terminal Hacks 11 | . 3 1 1 . 4 . . 2 . . . . Record 1 | . . . 1 . . . . . . . . . Robot Analysis 3 | . 2 . . . 1 . . . . . . . Prototype ID Bank 2 | . . . . . 1 . . 1 . . . . Open Door 1 | . . 1 . . . . . . . . . . Branch Access Points 1 | . . . . . . . . 1 . . . . Locate Traps 1 | . 1 . . . . . . . . . . . Hauler Manifests 1 | . . . . . 1 . . . . . . . Zone Layout 1 | . . . . . 1 . . . . . . . Fabricator Hacks 1 | . . . . . . . . 1 . . . . Network Status 1 | . . . . . . . . 1 . . . . Repair Station Hacks 10 | . 4 . . . 5 . . 1 . . . . Scan Component 6 | . 2 . . . 3 . . 1 . . . . Repair 4 | . 2 . . . 2 . . . . . . . Recycling Unit Hacks . | . . . . . . . . . . . . . Scanalyzer . | . . . . . . . . . . . . . Garrison Access Hacks 1 | . . . . . . 1 . . . . . . Seal Access 1 | . . . . . . 1 . . . . . . Unauthorized Hacks 13 | . 7 . . . 6 . . . . . . . Terminals 12 | . 6 . . . 6 . . . . . . . Track 1 | . 1 . . . . . . . . . . . Assimilate 1 | . . . . . 1 . . . . . . . Botnet 7 | . 3 . . . 4 . . . . . . . Disrupt 1 | . 1 . . . . . . . . . . . Operators 2 | . 1 . . . 1 . . . . . . . Fabricators . | . . . . . . . . . . . . . Repair Stations . | . . . . . . . . . . . . . Recycling Units 1 | . 1 . . . . . . . . . . . Tunnel 1 | . 1 . . . . . . . . . . . Scanalyzers . | . . . . . . . . . . . . . Garrison Access . | . . . . . . . . . . . . . Data Cores Recovered 1 | . . . . . 1 . . . . . . . Used . | . . . . . . . . . . . . . Hacking Detections 15 | . 4 . . . 8 1 . 2 . . . . Full Trace Events 3 | . 1 . . . 2 . . . . . . . Feedback Events . | . . . . . . . . . . . . . Feedback Blocked . | . . . . . . . . . . . . . Robot Schematics Acquired . | . . . . . . . . . . . . . Robots Built . | . . . . . . . . . . . . . Matter . | . . . . . . . . . . . . . Time . | . . . . . . . . . . . . . Total Robot Build Rating . | . . . . . . . . . . . . . Part Schematics Acquired . | . . . . . . . . . . . . . Parts Built . | . . . . . . . . . . . . . Matter . | . . . . . . . . . . . . . Time . | . . . . . . . . . . . . . Total Part Build Rating . | . . . . . . . . . . . . . Parts Repaired 4 | . 2 . . . 2 . . . . . . . Time 78 | . 26 . . . 52 . . . . . . . Parts Recycled . | . . . . . . . . . . . . . Recycled Matter . | . . . . . . . . . . . . . Retrieved Matter . | . . . . . . . . . . . . . Retrieved Components . | . . . . . . . . . . . . . Parts Scanalyzed . | . . . . . . . . . . . . . Part Schematics Acquired . | . . . . . . . . . . . . . Parts Damaged . | . . . . . . . . . . . . . Bothacking | -11 -10 -10 -10 -9 -8 -7 -7 -7 -7 -7 -7 -7 ------------ Run | Scr Mat Min Exi Min Mat Fac Was Fac Low Low Zio Dee Used RIF Installer . | . . . . . . . . . . . . . Robots Hacked . | . . . . . . . . . . . . . Non-combat . | . . . . . . . . . . . . . Combat . | . . . . . . . . . . . . . Robot Hacks Applied . | . . . . . . . . . . . . . Relay Couplers Released 4 | . . . . . . 4 . . . . . . Machine Destruction 4 | . . . . . . 4 . . . . . . Robots Rewired . | . . . . . . . . . . . . . Allies Hacked . | . . . . . . . . . . . . . Hacks Repelled . | . . . . . . . . . . . . . Allies | -11 -10 -10 -10 -9 -8 -7 -7 -7 -7 -7 -7 -7 -------- Run | Scr Mat Min Exi Min Mat Fac Was Fac Low Low Zio Dee Total Allies . | . . . . . . . . . . . . . Largest Group . | . . . . . . . . . . . . . Highest-Rated Group . | . . . . . . . . . . . . . Highest-Rated Ally . | . . . . . . . . . . . . . Total Orders 2 | . . . . . 2 . . . . . . . RETURN 2 | . . . . . 2 . . . . . . . Ally Attacks . | . . . . . . . . . . . . . Total Damage . | . . . . . . . . . . . . . Kills . | . . . . . . . . . . . . . Allies Corrupted . | . . . . . . . . . . . . . Allies Melted . | . . . . . . . . . . . . . Intel | -11 -10 -10 -10 -9 -8 -7 -7 -7 -7 -7 -7 -7 ------- Run | Scr Mat Min Exi Min Mat Fac Was Fac Low Low Zio Dee Robot Analysis Total 3 | . 2 . . . 1 . . . . . . . Derelict Logs Recovered 5 | . . 1 . 1 . . . . 1 1 1 . Drone Launches 2 | . . . . . 2 . . . . . . . Drone Recoveries 2 | . . . . . 2 . . . . . . . Exploration | -11 -10 -10 -10 -9 -8 -7 -7 -7 -7 -7 -7 -7 ------------- Run | Scr Mat Min Exi Min Mat Fac Was Fac Low Low Zio Dee Turns Passed 12658 | 90 1042 687 404 699 1569 753 645 1109 2199 935 1438 1088 Spaces Moved 5587 | 48 469 374 222 337 540 317 304 496 973 338 676 493 Core 7 | 7 . . . . . . . . . . . . Treads 5551 | 41 469 374 222 337 540 317 275 496 973 338 676 493 Legs . | . . . . . . . . . . . . . Wheels 29 | . . . . . . . 29 . . . . . Hover . | . . . . . . . . . . . . . Flight . | . . . . . . . . . . . . . Fastest Speed 50 | 50 160 180 180 180 200 205 130 200 200 210 210 200 Average Speed 199 | 143 178 180 180 180 203 205 193 200 211 223 211 203 Slowest Speed 240 | 160 200 180 180 180 220 205 240 200 230 230 230 230 Overloaded Moves . | . . . . . . . . . . . . . Propulsion Burnouts . | . . . . . . . . . . . . . Robots Hopped . | . . . . . . . . . . . . . Cave-ins Triggered . | . . . . . . . . . . . . . Exploration Rate (%) 58 | 4 69 92 62 75 47 11 95 10 81 57 79 76 Regions Visited 12 Branch Regions 7 Pre-discovered Areas 6 | . 1 1 1 1 . . . . . . 2 . Known Exits Taken 4 | . . . . . . . . 1 1 1 1 . Unknown Exits Taken 6 | 1 1 1 1 1 1 . . . . . . . Scrap Searched 5 | . . 1 . 1 . . . . 2 . 1 . Spaces Dug 35 | . . . . . 1 2 . 22 10 . . . Terrain Destroyed 273 | . 1 29 . 13 46 2 . 22 81 3 . 76 Melee 19 | . . . . . 1 2 . 6 10 . . . Projectile 11 | . 1 . . . 10 . . . . . . . AOE 243 | . . 29 . 13 35 . . 16 71 3 . 76 Terrain Rammed . | . . . . . . . . . . . . . Walls Destroyed . | . . . . . . . . . . . . . Machines Disabled . | . . . . . . . . . . . . . Actions | -11 -10 -10 -10 -9 -8 -7 -7 -7 -7 -7 -7 -7 --------- Run | Scr Mat Min Exi Min Mat Fac Was Fac Low Low Zio Dee Total 6542 | 60 587 384 228 387 837 392 341 582 1044 473 689 538 Wait 352 | . 42 2 . 13 109 35 1 43 9 98 . . Move 5576 | 47 468 373 221 336 539 317 303 495 972 337 675 493 Hop . | . . . . . . . . . . . . . Pick Up 93 | 3 14 1 2 5 34 8 6 7 5 3 4 1 Fast Attach 30 | 6 4 . . . 8 1 2 . 3 2 2 2 Attach 42 | . 1 . . 1 14 2 2 2 7 . . 13 Detach 7 | . . . . . 5 . . . . 1 . 1 Swap 71 | . 4 . 2 8 9 7 5 9 13 9 . 5 Drop 70 | . 3 2 3 3 22 7 11 9 . 1 8 1 Fire 262 | 4 49 1 . 21 96 13 11 11 22 22 . 12 Melee 31 | . . . . . 1 2 . 6 13 . . 9 Ram . | . . . . . . . . . . . . . Kick . | . . . . . . . . . . . . . Crush 7 | . 2 5 . . . . . . . . . . Escape Stasis . | . . . . . . . . . . . . . Rewire . | . . . . . . . . . . . . . Trap 1 | . . . . . . . . . . . . 1 Miscellaneous . | . . . . . . . . . . . . . Route ------- -11/Scrapyard -10/Materials (discovered 3 exits: [*Mat x2] / *Min) -10/Mines (discovered 3 exits: [*Mat x2] / *Exi) -10/Exiles (discovered 2 exits: [*Min x2]) -9/Mines -8/Materials -7/Factory -7/Waste -7/Factory (discovered 3 exits: Sto / *Low x2) -7/Lower Caves -7/Lower Caves (discovered 2 exits: [*Fac] / *Zio) -7/Zion -7/Deep Caves (discovered 1 exit: [*Pro]) History --------- Turn | Location | Event 6 | -11/Scrapyard | Discovered new exit (range 13) 91 | -11/Scrapyard | Entered Materials 275 | -10/Materials | Destroyed 7 combat bots 317 | -10/Materials | Build established: Mutant 439 | -10/Materials | Discovered new exit (range 12) 650 | -10/Materials | Repaired Lgt. Treads 664 | -10/Materials | Repaired Lgt. Treads 715 | -10/Materials | Discovered new exit (range 16) 867 | -10/Materials | Discovered new exit (range 16) 1133 | -10/Materials | Entered Mines 1276 | -10/Mines | Discovered new exit (range 14) 1323 | -10/Mines | Learned Materials emergency access door positions 1363 | -10/Mines | Found the Drone Emporium 1374 | -10/Mines | Found Prototype Device 1394 | -10/Mines | Learned location of Storage (-7) 1609 | -10/Mines | Discovered new exit (range 5) 1811 | -10/Mines | Deemed a non-threat by the Exiles lab entrance 1813 | -10/Mines | Discovered new exit (range 5) 1820 | -10/Mines | Entered Exiles 1844 | -10/Exiles | Discovered new exit (range 15) 1869 | -10/Exiles | Met 8R-AWN 1894 | -10/Exiles | Met EX-HEX 1950 | -10/Exiles | Met EX-BIN 1973 | -10/Exiles | Met EX-DEC 1986 | -10/Exiles | Learned location of Zion (-7) 2210 | -10/Exiles | Discovered new exit (range 10) 2224 | -10/Exiles | Entered Mines 2381 | -9/Mines | YI-UF0 nonchalantly dropped a Grenade Launcher on the ground 2401 | -9/Mines | Build established: Hauler-Mutant 2411 | -9/Mines | Destroyed YI-UF0 2422 | -9/Mines | Found Prototype Storage 2446 | -9/Mines | Core integrity fell below 50% 2566 | -9/Mines | Found a damaged Exp. Sensor Array with a note attached 2570 | -9/Mines | Found Prototype Device 2630 | -9/Mines | Found a hidden stash of uninstalled traps 2887 | -9/Mines | Discovered new exit (range 5) 2923 | -9/Mines | Entered Materials 2923 | -8/Materials | Evolved 4 slots: Utility x3, Weapon x1 2923 | -8/Materials | Identified Decoy Drone Bay 2929 | -8/Materials | Identified Exp. Sensor Array 2930 | -8/Materials | Identified YI-UF0's Bottomless Matter Pit 3003 | -8/Materials | Repaired Lgt. Treads 3030 | -8/Materials | Repaired Lgt. Treads 3221 | -8/Materials | Central database locked down 3767 | -8/Materials | Lost 3 parts (1n1u1w) 3864 | -8/Materials | Build established: Hauler-Tank 4080 | -8/Materials | Garrison activated, responded to threat 4405 | -8/Materials | Discovered new exit (range 16) 4492 | -8/Materials | Entered Factory 4492 | -7/Factory | Evolved 2 slots: Utility x2 5245 | -7/Factory | Sucked down chute 5245 | -7/Factory | Entered Waste 5245 | -7/Waste | The area was eerily silent 5318 | -7/Waste | Found Damper Plating 5338 | -7/Waste | Build established: Hauler-Skirmisher 5726 | -7/Waste | Discovered new exit (range 15) 5877 | -7/Waste | Found Damper Plating 5888 | -7/Waste | Identified exit to Factory 5890 | -7/Waste | Entered Factory 6386 | -7/Factory | Identified exit to Storage 6386 | -7/Factory | Identified exit to Lower Caves 6575 | -7/Factory | Build established: Hauler-Mutant 6999 | -7/Factory | Entered Lower Caves 7001 | -7/Lower Caves | Attracted the attention of an 0b10 checkpoint 7149 | -7/Lower Caves | Lost 3 parts (1n2w) 7273 | -7/Lower Caves | Found Alien Artifact 7273 | -7/Lower Caves | Identified Core Expander 7273 | -7/Lower Caves | Installed Core Expander, added new Utility slot 7587 | -7/Lower Caves | Lost 4 parts (1p1u2w) 8719 | -7/Lower Caves | Discovered new exit (range 11) 8832 | -7/Lower Caves | Identified exit to Lower Caves 9100 | -7/Lower Caves | Learned Factory emergency access door positions 9198 | -7/Lower Caves | Entered another Lower Caves area 9243 | -7/Lower Caves | Discovered new exit (range 10) 9245 | -7/Lower Caves | Attracted the attention of an 0b10 checkpoint 9267 | -7/Lower Caves | Learned 12 Factory zone layouts 9879 | -7/Lower Caves | Build established: Hauler-Skirmisher 10097 | -7/Lower Caves | Discovered new exit (range 13) 10131 | -7/Lower Caves | Identified exit to Zion 10133 | -7/Lower Caves | Entered Zion 10278 | -7/Zion | Found Prototype Launcher 10278 | -7/Zion | Identified Gui. Missile Launcher 10288 | -7/Zion | Found Rocket Array 10441 | -7/Zion | System corruption cleaned by Quarantine Array 10539 | -7/Zion | Acquired unknown access codes intercepted by a Zionite 10558 | -7/Zion | Build established: Hauler-Mutant 10602 | -7/Zion | Received a hallucinogenic algorithm 10714 | -7/Zion | Learned location of Extension (-6) 10903 | -7/Zion | Learned location of Recycling (-7) 11534 | -7/Zion | Opened final containment barrier to the Deep Caves 11567 | -7/Zion | Discovered new exit (range 3) 11567 | -7/Zion | Saw the warning signs outside the Deep Caves entrance 11569 | -7/Zion | Identified exit to Deep Caves 11571 | -7/Zion | Entered Deep Caves 11745 | -7/Deep Caves | Attacked by Z-Imprinter 11749 | -7/Deep Caves | Core integrity fell below 50% 11759 | -7/Deep Caves | Z-Facility disabled 11801 | -7/Deep Caves | Destroyed Z-Imprinter 11831 | -7/Deep Caves | Lost 12 parts (1p2n4u5w) 12233 | -7/Deep Caves | Found Surveybot 24 Chip 12544 | -7/Deep Caves | Discovered new exit (range 7) 12655 | -7/Deep Caves | Spotted as-10430 12656 | -7/Deep Caves | Core integrity fell below 20% 12659 | -7/Deep Caves | Destroyed by as-10430 with Assembled Focal Cannon Last Messages --------------- 11819_ Acquired Exp. Heat Sink. 11821_ Acquired 71 matter. 11831_ Acquired 26 matter. 11849_ The unstable cave ceiling collapses. 12046_ as-25718 destroyed. 12046_ Destroyed Asb. Hover Unit. 12046_ as-47715 destroyed. 12046_ as-10335 destroyed. 12079_ The unstable cave ceiling collapses. 12133_ Rocket Array destroyed. 12133_ Destroyed Rocket Array. 12133_ as-81620 destroyed. 12133_ as-02627 destroyed. 12133_ as-38113 destroyed. 12226_ Chain reaction triggered in Lgt. Nuclear Core. 12226_ Surveybot 24 destroyed. 12226_ Survey Way Station disabled. 12233_ Acquired Surveybot 24 Chip. 12544_ EXIT=FOUND 12656_ as-10430: "DSI9AT1D G8OHIBQ29FWG 26R186 QD12WHW8W33 TDK1 81FTS" Map ----- +----------------------------------------------------+ | ?????????????????????????????????????## ### #? | | ????????????????????????????????###??# #? | | ????????????????????????????????# ### #? | | ????????????????????????????????# ## | | ????????????????????????????????# # | | ????????????????????????????????# | | ???????a????????????????????????## | | ???Aaaaa?????????????????????????# | | ???aaaaa???????????????? ??????# ## | | ???aaaaa?????????????? ??????#### #### | | ???aaaaa??????????? ?????????## # # | | ???aaaaa????????? ##????????### ### | | ???aaaaa??????? [ M #??????????# # # | | ???Aaaaa?????? #??????????# # # # | | ???????a?????/ [ #??????????# # | | ?????????????[ / [ #??????????# "" ## | | ???????????? [ [ #?????###### """ | | ???????????? l #?????# " ## | | ??????????? M [ #?????# ##? | | ??????????? !/ ! ##????# #### ##?? | | ??????????? s #????# #??# ##??? | | ?????????? l #????# #??# ##???? | | ?????????? s s #???## #??# #????? | | ????????? ! ! ! ##### #??## #????? | | ?????????G s ##??## #????? | | ??????????" !@ #???# #????? | | ????????? ! #???# #????? | | ?????????" # ##### #????? | | ?????????? ## #????? | | ?????????? #### #????? | | ??????????? # # #??## #########????? | | ??????????? #### ## ## ##???#####????????????? | | ??????????? #????# ?# ?###?????????????????????? | | ???????????? ??????#??# ?????????????????????????? | | ???????????????????????#?????????????????????????? | | | | | | | | | | | | | | | | | | | | | | | | | | | | | | | +----------------------------------------------------+ Best States ------------- Heat Dissipation 86 Energy Generation 21 Energy Capacity 290 Matter Stores 300 Matter Capacity 300 Sight Range 16 Robot Scan Range 30 Terrain Scan Density 10 Armor Coverage 375 Evasion (%) 40 Targeting Accuracy 6 Recoil Reduction 2 Salvage Targeting 4 Item Schematics ----------------- None Robot Schematics ------------------ None Fabricated ------------ Nothing Alien Tech Used ----------------- Core Expander Achievements -------------- None Challenges ------------ None Game ------ Seed GlidesysSpikedWell Manual? 0 Play Time 01:38:23 Cumulative 139.2 hours Start 2020.09.11 @ 12:38:27 End 2020.09.11 @ 21:21:28 Sessions 5 Manual Loads 0 Difficulty Rogue Special Mode None Game No. 98 Rogue 98 Adventurer 0 Explorer 0 Win Type - Total 4 Types 3/0/1/0/0/0/0/0/0 Lore% 61 Gallery% 75 Achievement% 64 Wizard Run 0 Options --------- ASCII 0 Keyboard 1 Movement Numpad Keybinds 0 Fullscreen 1 Font 12/Terminus Map View 83x54 Tactical HUD 1 Map Filters NONE Filters NONE Steam 1 RUN: 72c5b126-c17b-465b-a542-a1020a2de110